bitfinex/quotes_SOLUSD_20250131
["timestamp","ask_amount","ask_price","bid_price","bid_amount"]
[1738349303137,0.03,231.8,231.72,34.88789758]
[1738349303328,0.03,231.8,231.79,34.88789758]
[1738349303524,0.03,231.8,231.75,35.53468817]
[1738349304241,0.03,231.8,231.75,0.64679059]
[1738349304535,0.03,231.8,231.72,0.6470767]
[1738349304748,0.03,231.8,231.7,0.64717427]
[1738349306733,3.71,231.8,231.7,0.64717427]
[1738349306913,3.71,231.8,231.66,0.64715992]
[1738349307635,13.41184853,231.79,231.66,0.64715992]
[1738349308345,3.71,231.8,231.69,34.88789758]
[1738349308644,13.41184853,231.79,231.7,0.64720827]
[1738349308816,13.41184853,231.79,231.68,0.64728174]
[1738349309128,13.41184853,231.79,231.66,0.64728298]
[1738349309346,13.41184853,231.76,231.66,0.64728298]
[1738349309534,13.41184853,231.76,231.64,0.64727645]
[1738349309738,13.41184853,231.74,231.58,0.71048399]
[1738349310413,13.41184853,231.7,231.58,0.71048399]
[1738349310615,13.41184853,231.7,231.58,0.063]
[1738349310947,13.41184853,231.68,231.58,0.063]
[1738349311636,31.4369,231.73,231.58,0.063]
[1738349311637,2.4369,231.73,231.6,34.88789758]
[1738349311841,2.4369,231.73,231.61,0.64755141]
[1738349312050,13.41184853,231.72,231.61,0.64755141]
[1738349312341,13.41184853,231.72,231.58,0.063]
[1738349312342,13.41184853,231.72,231.6,0.64756086]
[1738349313140,13.41184853,231.68,231.59,0.64753586]
[1738349313443,20.0,231.65,231.58,0.71060562]
[1738349313738,20.0,231.65,231.58,0.063]
[1738349313940,1.0,231.74,231.6,34.88789758]
[1738349314241,1.0,231.7,231.58,0.063]
[1738349314444,13.41184853,231.63,231.58,0.063]
[1738349314739,13.41184853,231.63,231.59,0.063]
[1738349315446,1.0,231.7,231.59,0.063]
[1738349315817,17.05184853,231.69,231.59,0.063]
[1738349316043,20.0,231.64,231.59,0.063]
[1738349316226,13.41184853,231.63,231.59,0.063]
[1738349316429,20.0,231.64,231.59,0.063]
[1738349316741,20.0,231.63,231.59,0.063]
[1738349316918,20.0,231.6,231.59,0.063]
[1738349317118,33.41184853,231.6,231.59,0.063]
[1738349320229,20.0,231.53,231.47,35.53588338]
[1738349320533,20.0,231.52,231.44,34.88789758]
[1738349320750,20.0,231.52,231.45,0.64797884]
[1738349321457,20.0,231.52,231.44,0.6480068]
[1738349321833,20.0,231.52,231.41,21.51572191]
[1738349322139,20.0,231.52,231.43,21.51572191]
[1738349322350,20.0,231.52,231.45,21.51572191]
[1738349322658,20.0,231.52,231.43,21.51572191]
[1738349322840,20.0,231.52,231.44,0.64801394]
[1738349324057,51.32,231.56,231.47,21.51572191]
[1738349324258,51.32,231.56,231.49,21.51572191]
[1738349324430,51.32,231.56,231.51,21.51572191]
[1738349324636,51.32,231.56,231.52,0.64775388]
[1738349325133,20.0,231.56,231.51,6.3766]
[1738349325337,20.0,231.56,231.52,0.64790393]
[1738349325663,1.0,231.65,231.52,0.64780066]
[1738349325836,20.0,231.61,231.52,0.64780066]
[1738349326042,20.0,231.57,231.51,6.3766]
[1738349326365,20.0,231.53,231.43,1.5966]
[1738349326652,13.41184853,231.52,231.5,0.063]
[1738349326955,13.41184853,231.53,231.5,0.063]
[1738349327263,1.0,231.52,231.5,0.063]
[1738349327652,20.0,231.45,231.37,0.64809054]
[1738349328145,20.0,231.45,231.38,21.51572191]
[1738349328349,4.64,231.54,231.39,0.64808474]
[1738349328861,20.0,231.5,231.39,0.64808474]
[1738349329047,13.41184853,231.53,231.39,0.64808474]
[1738349329236,13.41184853,231.53,231.4,34.98151022]
[1738349329442,13.41184853,231.53,231.42,34.98151022]
[1738349329741,13.41184853,231.53,231.43,0.64798766]
[1738349331370,13.41184853,231.51,231.43,0.64798766]
[1738349331557,13.41184853,231.51,231.4,0.64806384]
[1738349332070,1.0,231.56,231.42,34.98151022]
[1738349332276,3.62,231.57,231.44,34.98151022]
[1738349332475,3.62,231.61,231.48,34.98151022]
[1738349332684,3.62,231.61,231.49,0.64780213]
[1738349332847,3.62,231.61,231.52,34.98151022]
[1738349333048,18.03184853,231.64,231.49,34.98151022]
[1738349333369,13.41184853,231.6,231.5,0.64781114]
[1738349333548,20.0,231.57,231.5,0.64781114]
[1738349333753,20.0,231.57,231.47,0.64781242]
[1738349333951,0.4198,231.65,231.5,34.98151022]
[1738349333952,1.0,231.65,231.5,34.98151022]
[1738349334171,1.0,231.65,231.51,0.64780006]
[1738349334476,13.41184853,231.6,231.51,0.64780006]
[1738349334767,13.41184853,231.63,231.49,34.98151022]
[1738349334975,20.0,231.56,231.5,0.64783201]
[1738349335272,20.0,231.56,231.47,34.98151022]
[1738349335273,20.0,231.52,231.42,0.64787395]
[1738349335650,20.0,231.52,231.42,35.62938417]
[1738349336571,4.6,231.64,231.48,34.98151022]
[1738349336762,13.41184853,231.63,231.5,34.98151022]
[1738349337069,1.0,231.7,231.54,34.98151022]
[1738349337274,3.6,231.71,231.6,34.98151022]
[1738349337474,3.6,231.71,231.55,4.96623118]
[1738349337475,0.03,231.72,231.62,34.98151022]
[1738349337679,0.03,231.72,231.64,34.98151022]
[1738349337848,0.03,231.72,231.58,34.98151022]
[1738349338176,0.03,231.72,231.59,0.64754238]
[1738349338349,13.41184853,231.71,231.56,0.64759925]
[1738349338549,13.41184853,231.71,231.59,34.98151022]
[1738349338750,0.03,231.72,231.6,0.6474586]
[1738349338984,0.03,231.72,231.61,34.98151022]
[1738349339154,0.03,231.72,231.63,34.98151022]
[1738349339375,0.03,231.72,231.64,0.64738477]
[1738349339879,0.03,231.72,231.65,34.98151022]
[1738349340058,0.03,231.72,231.63,34.98151022]
[1738349340253,0.03,231.72,231.64,0.64743967]
[1738349340473,0.03,231.72,231.62,0.64744699]
[1738349340652,0.03,231.72,231.6,0.64748443]
[1738349340852,0.03,231.72,231.71,69.96302044]
[1738349341579,0.03,231.72,231.71,70.61035292]
[1738349341880,0.03,231.72,231.71,69.96302044]
[1738349342078,0.03,231.72,231.71,34.98151022]
[1738349343581,20.0,231.68,231.6,34.98151022]
[1738349343880,14.41184853,231.71,231.62,34.98151022]
[1738349343881,20.0,231.71,231.62,34.98151022]
[1738349344076,1.0,231.64,231.58,34.98151022]
[1738349344256,20.0,231.58,231.52,34.98151022]
[1738349344454,20.0,231.58,231.44,1.5906]
[1738349344455,20.0,231.54,231.5,34.98151022]
[1738349344662,20.0,231.54,231.48,34.98151022]
[1738349344881,20.0,231.54,231.5,34.98151022]
[1738349345078,13.41184853,231.53,231.48,34.98151022]
[1738349345256,20.0,231.59,231.52,34.98151022]
[1738349345569,20.0,231.59,231.58,34.98151022]
[1738349345970,20.0,231.58,231.53,34.98151022]
[1738349346153,20.0,231.58,231.57,34.98151022]
[1738349346351,1.0,231.62,231.56,34.98151022]
[1738349346577,3.64,231.63,231.43,0.07270504]
[1738349346578,20.0,231.54,231.53,34.98151022]
[1738349346776,1.0,231.62,231.53,34.98151022]
[1738349346972,1.0,231.62,231.59,34.98151022]
[1738349347375,13.41184853,231.6,231.59,34.98151022]
[1738349347678,20.0,231.57,231.53,34.98151022]
[1738349347890,20.0,231.54,231.53,34.98151022]
[1738349348179,20.0,231.53,231.49,34.98151022]
[1738349348378,13.41184853,231.56,231.51,34.98151022]
[1738349348577,20.0,231.53,231.51,34.98151022]
[1738349349268,20.0,231.49,231.46,34.98151022]
[1738349349467,20.0,231.49,231.48,34.98151022]
[1738349349871,23.66,231.49,231.43,0.07270504]
[1738349350077,13.41184853,231.44,231.43,0.07270504]
[1738349350870,20.0,231.36,231.34,0.063]
[1738349351063,33.41184853,231.36,231.34,0.063]
[1738349351267,33.16184853,231.36,231.34,0.063]
[1738349351699,4.64,231.42,231.34,0.063]
[1738349351982,4.64,231.42,231.34,21.611051]
[1738349352188,13.41184853,231.41,231.35,21.611051]
[1738349352397,3.64,231.42,231.4,21.548051]
[1738349352565,3.64,231.42,231.4,34.98697104]
[1738349352986,3.64,231.42,231.38,34.98697104]
[1738349353291,20.0,231.41,231.36,34.98697104]
[1738349353469,20.0,231.41,231.35,0.063]
[1738349353470,13.41184853,231.4,231.35,0.063]
[1738349353667,13.41184853,231.36,231.35,0.063]
[1738349354088,20.0,231.37,231.35,0.063]
[1738349354281,3.64,231.42,231.35,0.063]
[1738349354787,33.41184853,231.41,231.35,0.063]
[1738349355204,1.0,231.4,231.35,0.063]
[1738349355769,34.41184853,231.41,231.35,0.063]
[1738349356299,20.0,231.36,231.35,0.063]
[1738349356618,33.41184853,231.36,231.35,0.063]
[1738349357114,34.41184853,231.36,231.35,0.063]
[1738349357468,3.64,231.42,231.35,0.063]
[1738349357693,0.8814,231.52,231.35,0.063]
[1738349357694,3.66,231.41,231.38,34.98697104]
[1738349358900,20.0,231.4,231.38,34.98697104]
[1738349359389,3.64,231.41,231.38,34.98697104]
[1738349359597,3.64,231.41,231.4,34.98697104]
[1738349359798,54.98,231.49,231.4,34.98697104]
[1738349359996,51.34,231.49,231.47,34.98697104]
[1738349362108,51.34,231.49,231.37,0.64799606]
[1738349362418,51.34,231.49,231.47,34.98697104]
[1738349362799,51.34,231.49,231.45,34.98697104]
[1738349363307,51.34,231.49,231.48,34.98697104]
[1738349364896,51.37,231.49,231.48,34.98697104]
[1738349365095,51.37,231.49,231.37,1.64803626]
[1738349365096,51.37,231.49,231.44,34.98697104]
[1738349365487,51.37,231.49,231.46,34.98697104]
[1738349365686,51.37,231.49,231.48,34.98697104]
[1738349366412,50.87,231.49,231.48,34.98697104]
[1738349366615,50.87,231.49,231.43,34.98697104]
[1738349366794,50.87,231.49,231.45,34.98697104]
[1738349367116,50.87,231.49,231.47,34.98697104]
[1738349368190,50.87,231.49,231.37,0.64799838]
[1738349368191,50.87,231.49,231.43,34.98697104]
[1738349368588,20.0,231.45,231.37,0.64799838]
[1738349368787,20.0,231.41,231.36,0.063]
[1738349368999,20.0,231.37,231.36,0.063]
[1738349369204,33.41184853,231.37,231.36,0.063]
[1738349370302,151.64884853,231.36,231.35,0.063]
[1738349370708,150.64884853,231.36,231.35,0.063]
[1738349371106,151.64884853,231.36,231.35,0.063]
[1738349371501,14.41184853,231.35,231.34,0.063]
[1738349371697,20.0,231.25,231.24,0.063]
[1738349371919,23.62,231.25,231.24,0.063]
[1738349372116,37.03184853,231.25,231.24,0.063]
[1738349373308,3.62,231.25,231.24,0.063]
[1738349373506,37.03184853,231.25,231.24,0.063]
[1738349375721,37.03184853,231.25,231.14,0.063]
[1738349375722,20.0,231.21,231.14,0.063]
[1738349376102,33.41184853,231.21,231.14,0.063]
[1738349376724,34.41184853,231.21,231.14,0.063]
[1738349376924,35.41184853,231.21,231.14,0.063]
[1738349378022,31.0,231.16,231.14,0.063]
[1738349378207,14.41184853,231.15,231.14,0.063]
[1738349381537,14.41184853,231.15,231.12,0.063]
[1738349381538,137.237,231.13,231.12,0.063]
[1738349381730,45.41184853,231.13,231.12,0.063]
[1738349382939,14.41184853,231.13,231.12,0.063]
[1738349383128,17.97184853,231.13,231.12,0.063]
[1738349385638,16.97184853,231.13,231.12,0.063]
[1738349385831,3.56,231.16,231.12,0.063]
[1738349386330,13.41184853,231.13,231.12,0.063]
[1738349387528,20.0,231.14,231.12,0.063]
[1738349387928,20.0,231.13,231.12,0.063]
[1738349388338,37.331626,231.13,231.12,0.063]
[1738349388730,23.6,231.13,231.12,0.063]
[1738349389231,20.0,231.13,231.12,0.063]
[1738349389431,3.6,231.16,231.12,0.063]
[1738349390719,51.4,231.17,231.12,0.063]
[1738349390939,55.0,231.17,231.12,0.063]
[1738349391136,55.0,231.17,231.13,34.98697104]
[1738349391331,55.0,231.17,231.12,0.063]
[1738349392867,30.0,231.26,231.12,0.063]
[1738349392868,3.58,231.31,231.16,21.57929942]
[1738349393024,17.320736,231.28,231.21,21.57929942]
[1738349393224,17.320736,231.28,231.17,0.64874438]
[1738349393225,17.320736,231.28,231.19,21.57929942]
[1738349393439,13.41184853,231.29,231.19,21.57929942]
[1738349393643,43.41184853,231.29,231.14,21.57929942]
[1738349393855,20.0,231.25,231.14,21.57929942]
[1738349394456,13.411849,231.28,231.2,21.57929942]
[1738349394660,30.0,231.37,231.22,21.57929942]
[1738349394834,0.03,231.38,231.25,1.6088]
[1738349394835,3.58,231.33,231.25,1.6088]
[1738349395037,20.0,231.29,231.25,1.6088]
[1738349395334,3.58,231.33,231.25,1.6088]
[1738349395527,3.58,231.33,231.28,21.57929942]
[1738349396057,3.58,231.33,231.25,2.25738659]
[1738349396058,3.58,231.33,231.25,1.6088]
[1738349396985,0.03,231.34,231.27,35.03598172]
[1738349397141,0.03,231.34,231.29,35.03598172]
[1738349397461,0.03,231.34,231.25,37.29323581]
[1738349398050,20.03,231.34,231.25,37.29323581]
[1738349398576,20.03,231.34,231.25,1.6088]
[1738349398577,13.41184853,231.33,231.25,1.6088]
[1738349398864,20.0,231.3,231.25,1.6088]
[1738349399073,20.0,231.3,231.18,1.5725]
[1738349399438,13.41184853,231.29,231.18,1.5725]
[1738349399659,20.0,231.26,231.18,1.5725]
[1738349400248,17.321238,231.3,231.18,1.5725]
[1738349400652,17.321238,231.3,231.18,2.22126629]
[1738349400843,20.0,231.27,231.18,2.22126629]
[1738349401043,20.0,231.27,231.18,1.5725]
[1738349401239,0.03,231.34,231.22,35.03598172]
[1738349401445,3.54,231.33,231.23,0.64861759]
[1738349401765,3.54,231.33,231.32,35.03598172]
[1738349401948,0.03,231.34,231.32,35.03598172]
[1738349402152,0.03,231.34,231.33,2.25121171]
[1738349402463,0.03,231.38,231.33,2.25121171]
[1738349402643,0.03,231.38,231.37,35.03598172]
[1738349403470,3.54,231.48,231.4,35.03598172]
[1738349403668,3.54,231.47,231.41,0.64810024]
[1738349403867,3.54,231.47,231.44,35.03598172]
[1738349404044,3.54,231.47,231.37,35.68394606]
[1738349404250,3.54,231.47,231.39,35.03598172]
[1738349404480,3.54,231.47,231.4,0.64809567]
[1738349404653,3.54,231.47,231.43,35.03598172]
[1738349404850,3.54,231.47,231.44,0.64798388]
[1738349405170,20.0,231.52,231.41,35.03598172]
[1738349405370,20.0,231.52,231.42,0.64802182]
[1738349405667,3.54,231.54,231.42,0.64802182]
[1738349405668,20.0,231.51,231.42,35.68400354]
[1738349405867,20.0,231.51,231.42,0.64802182]
[1738349406053,20.0,231.51,231.38,35.03598172]
[1738349406259,20.0,231.51,231.39,0.64812515]
[1738349407046,20.0,231.51,231.4,35.03598172]
[1738349407272,3.52,231.54,231.42,35.03598172]
[1738349407450,3.52,231.54,231.37,35.68397976]
[1738349407768,20.0,231.51,231.37,35.68397976]
[1738349407954,20.0,231.51,231.41,35.03598172]
[1738349408153,20.0,231.51,231.42,0.64799582]
[1738349408350,20.0,231.51,231.4,0.64804798]
[1738349408664,33.41184853,231.53,231.38,0.64811793]
[1738349408869,33.41184853,231.53,231.36,0.64814914]
[1738349409067,20.0,231.45,231.34,0.64821972]
[1738349409265,20.0,231.45,231.33,1.6029]
[1738349409573,20.0,231.45,231.33,2.25125258]
[1738349409968,20.0,231.45,231.35,35.03598172]
[1738349410168,17.305484,231.48,231.37,35.03598172]
[1738349410370,17.305484,231.48,231.38,0.64811307]
[1738349410862,0.03,231.49,231.38,0.64811307]
[1738349411456,17.304368,231.48,231.36,0.64816852]
[1738349411869,20.824368,231.48,231.36,0.64816852]
[1738349412074,20.0,231.45,231.33,2.25107775]
[1738349412376,20.0,231.45,231.33,1.6029]
[1738349412575,20.0,231.42,231.33,1.6029]
[1738349413170,20.0,231.38,231.26,7.6324]
[1738349413472,20.0,231.38,231.27,0.6485007]
[1738349413677,20.0,231.38,231.26,7.6324]
[1738349414273,20.0,231.34,231.26,1.5189]
[1738349414577,3.52,231.33,231.21,0.64860824]
[1738349414775,20.0,231.29,231.2,6.3708]
[1738349415278,20.0,231.29,231.19,1.6076]
[1738349415788,20.0,231.28,231.15,0.64870917]
[1738349416079,20.0,231.24,231.14,6.87704038]
[1738349416250,20.0,231.2,231.12,1.6117]
[1738349416563,3.5,231.19,231.12,0.063]
[1738349416964,20.0,231.15,231.12,0.063]
[1738349417875,3.5,231.19,231.12,0.063]
[1738349420578,13.41184853,231.18,231.12,0.063]
[1738349421874,3.5,231.19,231.12,0.063]
[1738349422462,13.41184853,231.18,231.12,0.063]
[1738349422669,1.0,231.14,231.0,0.063]
[1738349422990,13.41184853,231.14,231.0,0.063]
[1738349423384,13.41184853,231.16,231.0,0.063]
[1738349423581,13.41184853,231.13,231.0,0.063]
[1738349423768,13.41184853,231.1,231.0,0.063]
[1738349424178,30.0,231.14,231.0,0.063]
[1738349424366,31.0,231.17,231.0,0.063]
[1738349424791,13.41184853,231.13,231.0,0.063]
[1738349425095,13.41184853,231.16,231.0,0.063]
[1738349425289,13.41184853,231.13,231.0,0.063]
[1738349426094,31.0,231.17,231.0,0.063]
[1738349426264,13.41184853,231.16,231.0,0.063]
[1738349426788,4.5,231.19,231.0,0.063]
[1738349426991,43.41184853,231.18,231.0,0.063]
[1738349427181,13.41184853,231.18,231.0,0.063]
[1738349427387,30.0,231.21,231.01,0.64913386]
[1738349427684,13.41184853,231.16,231.01,0.64913386]
[1738349428175,13.41184853,231.16,231.0,0.063]
[1738349428367,13.41184853,231.16,231.0,0.71225605]
[1738349429368,30.0,231.11,231.0,0.063]
[1738349429589,13.41184853,231.07,231.0,0.063]
[1738349429983,2.28523569,231.1,231.0,0.063]
[1738349430391,13.41184853,231.09,231.0,0.063]
[1738349431889,3.54,231.08,231.0,0.063]
[1738349432091,3.54,231.08,231.0,0.71217051]
[1738349433500,3.54,231.08,231.0,22.3201421]
[1738349434190,3.54,231.08,231.0,0.71217051]
[1738349436483,3.54,231.08,231.0,0.063]
[1738349437010,3.54,231.08,231.0,0.71226609]
[1738349437427,3.54,231.08,231.0,0.063]
[1738349438013,11.3797,231.08,231.0,0.063]
[1738349439914,13.41184853,231.07,231.0,0.063]
[1738349440105,20.0,231.04,230.97,0.063]
[1738349440615,11.3797,231.08,230.97,0.063]
[1738349441008,20.0,231.04,230.97,0.063]
[1738349441413,20.0,231.0,230.97,0.063]
[1738349441921,20.0,230.96,230.93,8.2017]
[1738349442124,20.0,230.96,230.88,0.063]
[1738349442324,20.0,230.96,230.88,0.71265165]
[1738349442511,20.0,231.0,230.88,0.063]
[1738349443135,20.0,231.0,230.89,0.64955555]
[1738349443338,64.87184853,231.03,230.88,0.063]
[1738349443339,20.0,230.96,230.88,0.063]
[1738349445107,51.46,231.03,230.88,0.063]
[1738349445522,20.0,230.99,230.88,0.71259779]
[1738349445827,20.0,230.95,230.88,0.063]
[1738349446010,3.52,230.94,230.88,0.063]
[1738349449124,51.46,231.03,230.88,0.063]
[1738349449327,3.5,231.02,230.88,0.063]
[1738349449521,51.46,231.03,230.89,0.64952155]
[1738349449710,3.5,231.02,230.89,0.64952155]
[1738349450331,20.0,231.0,230.89,0.64952155]
[1738349451229,3.5,231.02,230.89,0.64952155]
[1738349451745,20.0,230.98,230.88,0.063]
[1738349454946,20.0,230.98,230.89,0.64959223]
[1738349455116,20.0,230.98,230.88,0.063]
[1738349455435,20.0,230.94,230.88,0.063]
[1738349455616,20.0,230.9,230.88,0.063]
[1738349459253,30.0,230.97,230.88,0.063]
[1738349459433,3.69445438,230.98,230.88,0.063]
[1738349459749,20.0,230.97,230.88,0.063]
[1738349460052,13.41184853,230.97,230.88,0.063]
[1738349460252,20.0,230.94,230.88,0.063]
[1738349460434,20.0,230.9,230.88,0.063]
[1738349460634,3.48,230.89,230.88,0.063]
[1738349461048,3.48,230.89,230.81,6.3302]
[1738349461423,20.0,230.85,230.8,15.75126027]
[1738349462837,20.0,230.88,230.8,15.75126027]
[1738349463147,20.0,230.83,230.8,0.43804779]
[1738349464325,13.41184853,230.82,230.8,0.43804779]
[1738349464519,30.0,230.85,230.8,0.43804779]
[1738349464727,20.0,230.82,230.8,0.43804779]
[1738349465139,30.0,230.85,230.8,0.43804779]
[1738349465445,4.48,230.89,230.8,0.43804779]
[1738349465446,33.48,230.89,230.8,0.43804779]
[1738349465626,13.41184853,230.85,230.8,0.43804779]
[1738349465945,2.98448535,230.88,230.8,0.43804779]
[1738349466245,20.0,230.81,230.8,0.43804779]
[1738349466424,3.48,230.89,230.8,0.43804779]
[1738349467030,20.0,230.85,230.8,0.43804779]
[1738349467236,13.41184853,230.88,230.8,0.43804779]
[1738349467434,3.5,230.87,230.81,6.5889]
[1738349467632,3.5,230.87,230.8,0.43804779]
[1738349467850,20.0,230.83,230.8,0.43804779]
[1738349468033,13.41184853,230.86,230.8,0.43804779]
[1738349468547,3.5,230.87,230.8,0.43804779]
[1738349469028,33.41184853,230.86,230.8,0.43804779]
[1738349469541,20.0,230.81,230.8,0.43804779]
[1738349469735,33.41184853,230.81,230.8,0.43804779]
[1738349471646,30.0,230.77,230.76,0.063]
[1738349471837,43.41184853,230.77,230.76,0.063]
[1738349473345,8.895954,230.81,230.65,7.7313]
[1738349473346,13.41184853,230.69,230.65,7.7313]
[1738349473651,3.52,230.68,230.65,7.7313]
[1738349474531,13.41184853,230.67,230.65,7.7313]
[1738349474742,3.52,230.68,230.65,7.7313]
[1738349475633,3.52,230.68,230.65,7.7943]
[1738349476145,13.41184853,230.67,230.65,7.7943]
[1738349477369,13.41184853,230.67,230.65,0.063]
[1738349480050,43.41184853,230.66,230.65,0.063]
[1738349482747,43.41184853,230.66,230.64,0.063]
[1738349482748,13.41184853,230.65,230.64,0.063]
[1738349482940,14.62435543,230.65,230.64,0.063]
[1738349484740,3.52,230.68,230.64,0.063]
[1738349485138,20.0,230.65,230.64,0.063]
[1738349485430,16.91184853,230.67,230.64,0.063]
[1738349485841,30.0,230.69,230.64,0.063]
[1738349485842,3.5,230.66,230.64,0.063]
[1738349486241,20.0,230.65,230.64,0.063]
[1738349486443,33.41184853,230.65,230.64,0.063]
[1738349487050,20.0,230.69,230.64,0.063]
[1738349487251,3.5,230.68,230.64,0.063]
[1738349487657,3.5,230.67,230.64,0.063]
[1738349490358,13.41184853,230.66,230.64,0.063]
[1738349490539,14.62435543,230.66,230.64,0.063]
[1738349492249,3.48,230.65,230.64,0.063]
[1738349492945,55.7918723,230.74,230.64,0.71337603]
[1738349493147,51.54,230.74,230.64,0.71337603]
[1738349493347,3.48,230.73,230.64,0.71337603]
[1738349494248,3.48,230.73,230.65,6.2567]
[1738349494458,3.48,230.73,230.66,0.65022986]
[1738349494657,51.54,230.74,230.68,1.0]
[1738349494952,49.8734,230.74,230.7,2.5342]
[1738349495152,41.5402,230.74,230.72,7.0591]
[1738349495362,3.48,230.82,230.73,0.64993975]
[1738349495741,0.03,230.83,230.77,1.0]
[1738349495948,0.03,230.83,230.78,0.64980794]
[1738349496349,0.03,230.83,230.73,15.56418153]
[1738349496350,0.03,230.83,230.74,0.64986922]
[1738349497247,0.03,230.83,230.75,1.64984694]
[1738349497449,0.03,230.83,230.75,0.64984694]
[1738349497751,0.03,230.83,230.73,0.64988897]
[1738349498376,0.03,230.83,230.75,1.0]
[1738349498577,0.03,230.83,230.77,1.0]
[1738349498876,0.03,230.83,230.76,0.64979897]
[1738349499173,0.03,230.83,230.74,1.0]
[1738349499344,0.03,230.83,230.75,0.6498927]
[1738349501668,0.03,230.83,230.8,21.64556045]
[1738349501864,0.03,230.83,230.82,29.11176045]
[1738349502062,6.41978487,230.91,230.85,21.64556045]
[1738349502368,6.41978487,230.91,230.86,0.64954164]
[1738349502744,51.56,230.95,230.84,0.64958626]
[1738349502949,13.41184853,230.94,230.82,6.4662]
[1738349503169,20.0,230.91,230.82,6.4662]
[1738349504282,20.0,230.91,230.83,0.64978923]
[1738349504564,51.56,230.95,230.83,0.64978923]
[1738349504770,13.41184853,230.94,230.83,0.64978923]
[1738349504971,51.56,230.95,230.83,0.64978923]
[1738349505170,20.0,230.92,230.83,0.64978923]
[1738349505352,51.56,230.95,230.83,1.64978923]
[1738349505556,51.56,230.95,230.83,0.64978923]
[1738349505883,51.56,230.95,230.84,1.0]
[1738349506178,51.56,230.95,230.85,22.29511193]
[1738349506351,51.56,230.95,230.85,0.64955148]
[1738349506975,51.56,230.95,230.86,0.64956518]
[1738349507155,51.56,230.95,230.83,0.64956455]
[1738349507545,51.56,230.95,230.84,22.64556045]
[1738349507763,51.56,230.95,230.85,0.64952727]
[1738349507969,51.56,230.95,230.86,22.64556045]
[1738349508160,51.56,230.95,230.87,0.64949072]
[1738349509060,51.56,230.95,230.91,1.0]
[1738349509353,1.2125069,231.04,230.92,0.64939492]
[1738349509354,3.48,231.04,230.92,0.64939492]
[1738349510056,20.0,231.02,230.92,0.64939492]
[1738349510271,3.48,231.04,230.93,0.64941149]
[1738349510469,13.41184853,231.03,230.9,0.64941116]
[1738349510779,20.0,231.0,230.9,0.64941116]
[1738349511175,20.0,231.0,230.89,6.2463]
[1738349511477,20.0,231.0,230.9,0.64954198]
[1738349512981,20.0,231.0,230.89,6.2463]
[1738349513282,20.0,231.0,230.9,0.64954227]
[1738349513862,3.48,231.02,230.9,22.29510272]
[1738349514071,3.48,231.03,230.9,23.29510272]
[1738349514287,20.0,231.02,230.9,1.64954227]
[1738349514463,20.0,231.02,230.9,0.64954227]
[1738349514976,20.0,231.01,230.9,0.64954227]
[1738349515855,3.48,230.99,230.9,0.64954227]
[1738349516382,3.48,230.99,230.89,6.2463]
[1738349517167,3.48,230.99,230.9,0.64955716]
[1738349520290,20.0,231.01,230.9,0.64955716]
[1738349520589,3.48,231.0,230.9,0.64955716]
[1738349521188,3.48,231.05,230.91,13.51461892]
[1738349521379,23.48,231.04,230.92,0.64932946]
[1738349521562,3.48,231.02,230.92,0.64932946]
[1738349521757,17.367134,231.07,230.92,0.64932946]